[Event "*** Titled Tuesday Blitz"]
[Site "Chess.com"]
[Date "2021.02.09"]
[Round "7"]
[White "soumeow"]
[Black "CakeinSpace2002"]
[Result "0-1"]
[WhiteElo "2224"]
[BlackElo "2360"]
[TimeControl "180+1"]
[EndTime "11:18:16 PST"]
[Termination "CakeinSpace2002 won on time"]

1. d4 {[%clk 0:03:00.9]} 1... Nf6 {[%clk 0:02:58.2]} 2. c4 {[%clk 0:03:00.7]}
2... g6 {[%clk 0:02:57.2]} 3. Nc3 {[%clk 0:02:58.8]} 3... Bg7 {[%clk 0:02:56.1]}
4. e4 {[%clk 0:02:58.8]} 4... d6 {[%clk 0:02:56]} 5. Nf3 {[%clk 0:02:58.8]} 5...
O-O {[%clk 0:02:54]} 6. Be2 {[%clk 0:02:59.2]} 6... c5 {[%clk 0:02:53.5]} 7. d5
{[%clk 0:02:57.2]} 7... e5 {[%clk 0:02:53.2]} 8. dxe6 {[%clk 0:02:54.4]} 8...
fxe6 {[%clk 0:02:51.9]} 9. e5 {[%clk 0:02:41.5]} 9... dxe5 {[%clk 0:02:45.1]}
10. Qxd8 {[%clk 0:02:40.8]} 10... Rxd8 {[%clk 0:02:46]} 11. Nxe5 {[%clk
0:02:40.5]} 11... Nbd7 {[%clk 0:02:45.9]} 12. Nd3 {[%clk 0:02:27.9]} 12... b6
{[%clk 0:02:40.6]} 13. Bf3 {[%clk 0:02:21.2]} 13... Rb8 {[%clk 0:02:40.5]} 14.
Be3 {[%clk 0:01:49.8]} 14... Nf8 {[%clk 0:02:35.9]} 15. O-O-O {[%clk 0:01:36.3]}
15... Bb7 {[%clk 0:02:34.7]} 16. Bxb7 {[%clk 0:01:18.8]} 16... Rxb7 {[%clk
0:02:35.6]} 17. Ne5 {[%clk 0:01:18.7]} 17... Rbb8 {[%clk 0:02:20.8]} 18. Nb5
{[%clk 0:00:59.4]} 18... a6 {[%clk 0:02:13]} 19. Nd6 {[%clk 0:00:57.1]} 19...
Ra8 {[%clk 0:02:01.9]} 20. Nc6 {[%clk 0:00:28.7]} 20... Rd7 {[%clk 0:01:53.4]}
21. Ne5 {[%clk 0:00:27]} 21... Rxd6 {[%clk 0:01:50.9]} 22. Rxd6 {[%clk
0:00:25.9]} 22... Ne4 {[%clk 0:01:51.4]} 23. Rxb6 {[%clk 0:00:16.6]} 23... Bxe5
{[%clk 0:01:50]} 24. Rd1 {[%clk 0:00:14.5]} 24... Bd4 {[%clk 0:01:42.4]} 25.
Bxd4 {[%clk 0:00:13.2]} 25... cxd4 {[%clk 0:01:43.3]} 26. f3 {[%clk 0:00:12.7]}
26... Nd7 {[%clk 0:01:36.5]} 27. Rc6 {[%clk 0:00:09.7]} 27... Nef6 {[%clk
0:01:20.8]} 28. Rxd4 {[%clk 0:00:09.4]} 28... Kf7 {[%clk 0:01:21.3]} 29. Rdd6
{[%clk 0:00:08.6]} 29... a5 {[%clk 0:01:16.2]} 30. Rxe6 {[%clk 0:00:08]} 30...
a4 {[%clk 0:01:10.5]} 31. a3 {[%clk 0:00:07.6]} 31... Rb8 {[%clk 0:01:09.7]} 32.
Red6 {[%clk 0:00:05.5]} 32... Ke7 {[%clk 0:01:09]} 33. Re6+ {[%clk 0:00:04.7]}
33... Kf7 {[%clk 0:01:07]} 34. Re3 {[%clk 0:00:04.4]} 34... Nb6 {[%clk
0:01:03.1]} 35. Rc7+ {[%clk 0:00:04.1]} 35... Kf8 {[%clk 0:01:03]} 36. Ree7
{[%clk 0:00:03.1]} 36... Kg8 {[%clk 0:01:00.4]} 37. Rg7+ {[%clk 0:00:03]} 37...
Kh8 {[%clk 0:00:59.6]} 38. Rgf7 {[%clk 0:00:03.1]} 38... Ne8 {[%clk 0:00:53.8]}
39. Rxh7+ {[%clk 0:00:02.8]} 39... Kg8 {[%clk 0:00:54.3]} 40. Rce7 {[%clk
0:00:02.7]} 40... Nxc4 {[%clk 0:00:52.3]} 0-1

[Event "*** Titled Tuesday Blitz"]
[Site "Chess.com"]
[Date "2021.02.09"]
[Round "7"]
[White "JiiHart"]
[Black "jamalm2"]
[Result "1-0"]
[WhiteElo "2106"]
[BlackElo "1941"]
[TimeControl "180+1"]
[EndTime "11:18:16 PST"]
[Termination "JiiHart won on time"]

1. e4 {[%clk 0:03:00.9]} 1... c6 {[%clk 0:02:57.6]} 2. d4 {[%clk 0:03:00.5]}
2... d5 {[%clk 0:02:57.2]} 3. Nc3 {[%clk 0:03:01.1]} 3... dxe4 {[%clk
0:02:56.4]} 4. Nxe4 {[%clk 0:03:01.1]} 4... Bf5 {[%clk 0:02:56.7]} 5. Ng3 {[%clk
0:03:00.9]} 5... Bg6 {[%clk 0:02:56.6]} 6. h4 {[%clk 0:03:01]} 6... h6 {[%clk
0:02:55.8]} 7. N1e2 {[%clk 0:03:01]} 7... e6 {[%clk 0:02:51.3]} 8. Nf4 {[%clk
0:03:00.8]} 8... Bh7 {[%clk 0:02:50.4]} 9. Bc4 {[%clk 0:03:01]} 9... Bd6 {[%clk
0:02:49.4]} 10. Ngh5 {[%clk 0:02:59.6]} 10... Bf8 {[%clk 0:02:38.3]} 11. Qe2
{[%clk 0:02:56.3]} 11... Qe7 {[%clk 0:02:34.3]} 12. Bd2 {[%clk 0:02:50.5]} 12...
Nf6 {[%clk 0:02:32.3]} 13. O-O-O {[%clk 0:02:48]} 13... Nxh5 {[%clk 0:02:25.2]}
14. Nxh5 {[%clk 0:02:46.9]} 14... Nd7 {[%clk 0:02:24.6]} 15. Bd3 {[%clk
0:02:40.7]} 15... Bxd3 {[%clk 0:02:22.3]} 16. Qxd3 {[%clk 0:02:41.6]} 16... g6
{[%clk 0:02:20.2]} 17. Ng3 {[%clk 0:02:30.5]} 17... Bg7 {[%clk 0:02:17.1]} 18.
Ne4 {[%clk 0:02:13.8]} 18... O-O-O {[%clk 0:02:12.4]} 19. Qb3 {[%clk 0:02:04.8]}
19... f5 {[%clk 0:02:08.7]} 20. Bb4 {[%clk 0:02:01.6]} 20... c5 {[%clk
0:01:58.3]} 21. Nxc5 {[%clk 0:01:45.6]} 21... Nxc5 {[%clk 0:01:57.8]} 22. Bxc5
{[%clk 0:01:45.5]} 22... Qc7 {[%clk 0:01:51.6]} 23. Bxa7 {[%clk 0:01:38.3]}
23... Rd6 {[%clk 0:01:43]} 24. Bc5 {[%clk 0:01:25.2]} 24... Rc6 {[%clk
0:01:40.9]} 25. Rhe1 {[%clk 0:01:16.9]} 25... b6 {[%clk 0:01:35.3]} 26. Bb4
{[%clk 0:00:58.2]} 26... Qf4+ {[%clk 0:01:08.6]} 27. Kb1 {[%clk 0:00:57.4]}
27... Bxd4 {[%clk 0:00:50.9]} 28. Rxe6 {[%clk 0:00:50.9]} 28... Rc7 {[%clk
0:00:31.9]} 29. Bd6 {[%clk 0:00:42.4]} 29... Qg4 {[%clk 0:00:29.7]} 30. f3
{[%clk 0:00:39.5]} 30... Qxg2 {[%clk 0:00:28.8]} 31. Bxc7 {[%clk 0:00:38.2]}
31... Qe2 {[%clk 0:00:22.7]} 32. Rxe2 {[%clk 0:00:37]} 32... Kxc7 {[%clk
0:00:09.1]} 33. Qc4+ {[%clk 0:00:36.1]} 33... Kb7 {[%clk 0:00:07]} 34. Qxd4
{[%clk 0:00:35.6]} 34... Rc8 {[%clk 0:00:04.1]} 35. Qd5+ {[%clk 0:00:35.2]}
35... Kb8 {[%clk 0:00:02.5]} 36. Re7 {[%clk 0:00:33.6]} 1-0

[Event "*** Titled Tuesday Blitz"]
[Site "Chess.com"]
[Date "2021.02.09"]
[Round "7"]
[White "ShapkinAnatoliy"]
[Black "esrosenberg"]
[Result "0-1"]
[WhiteElo "2666"]
[BlackElo "2090"]
[TimeControl "180+1"]
[EndTime "11:18:17 PST"]
[Termination "esrosenberg won by resignation"]

1. e4 {[%clk 0:03:00.9]} 1... e6 {[%clk 0:02:59.7]} 2. Nf3 {[%clk 0:03:01.6]}
2... d5 {[%clk 0:03:00.1]} 3. d3 {[%clk 0:03:02.5]} 3... dxe4 {[%clk 0:02:59.7]}
4. dxe4 {[%clk 0:03:03.4]} 4... Qxd1+ {[%clk 0:02:59.8]} 5. Kxd1 {[%clk
0:03:04.3]} 5... Bc5 {[%clk 0:02:56.6]} 6. Nbd2 {[%clk 0:03:05.2]} 6... Bxf2
{[%clk 0:02:55.8]} 7. Bd3 {[%clk 0:03:05.5]} 7... f6 {[%clk 0:02:45.7]} 8. c3
{[%clk 0:03:06.4]} 8... Nd7 {[%clk 0:02:40]} 9. Ke2 {[%clk 0:03:07.3]} 9... Bb6
{[%clk 0:02:39.1]} 10. Nc4 {[%clk 0:03:07]} 10... Nc5 {[%clk 0:02:35.5]} 11. Bc2
{[%clk 0:03:07.5]} 11... e5 {[%clk 0:02:30]} 12. h4 {[%clk 0:03:08]} 12... Bg4
{[%clk 0:02:29.1]} 13. a4 {[%clk 0:03:08.2]} 13... a5 {[%clk 0:02:21.3]} 14.
Nxb6 {[%clk 0:03:07.9]} 14... cxb6 {[%clk 0:02:20.8]} 15. Be3 {[%clk 0:03:08.7]}
15... Ne7 {[%clk 0:02:10.8]} 16. Kf2 {[%clk 0:03:05.8]} 16... O-O-O {[%clk
0:02:06]} 17. Rhd1 {[%clk 0:03:04.3]} 17... h5 {[%clk 0:01:56.8]} 18. b4 {[%clk
0:03:03.3]} 18... Rxd1 {[%clk 0:01:33.1]} 19. Rxd1 {[%clk 0:03:02.5]} 19... Nd7
{[%clk 0:01:32.6]} 20. Bb3 {[%clk 0:03:02.4]} 20... Kc7 {[%clk 0:01:25.7]} 21.
Bc4 {[%clk 0:03:02.8]} 21... Rc8 {[%clk 0:00:56.1]} 22. Bb5 {[%clk 0:03:02.8]}
22... Nc6 {[%clk 0:00:40.8]} 23. bxa5 {[%clk 0:03:02.9]} 23... bxa5 {[%clk
0:00:39]} 24. Rd2 {[%clk 0:03:03.5]} 24... Nf8 {[%clk 0:00:27.5]} 25. Ne1 {[%clk
0:03:03.5]} 25... Ne6 {[%clk 0:00:22.3]} 26. Nd3 {[%clk 0:03:04.1]} 26... Rd8
{[%clk 0:00:22.4]} 27. Rc2 {[%clk 0:03:04.2]} 27... g5 {[%clk 0:00:19.6]} 28.
Nc5 {[%clk 0:03:04.2]} 28... Nxc5 {[%clk 0:00:19.4]} 29. Bxc5 {[%clk 0:03:05.1]}
29... b6 {[%clk 0:00:19.4]} 30. Be3 {[%clk 0:03:04.4]} 30... gxh4 {[%clk
0:00:19.4]} 31. Rc1 {[%clk 0:03:04.9]} 31... Na7 {[%clk 0:00:16.6]} 32. Rh1
{[%clk 0:03:04.9]} 32... Nxb5 {[%clk 0:00:15.9]} 33. axb5 {[%clk 0:03:05.8]}
33... h3 {[%clk 0:00:15.1]} 34. gxh3 {[%clk 0:03:05.9]} 34... Bd7 {[%clk
0:00:15.6]} 35. h4 {[%clk 0:03:06.1]} 35... Bxb5 {[%clk 0:00:15.1]} 36. Rg1
{[%clk 0:03:07]} 36... Bc4 {[%clk 0:00:14.4]} 37. Rg7+ {[%clk 0:03:07.6]} 37...
Kc6 {[%clk 0:00:14.6]} 38. Rg6 {[%clk 0:03:08.4]} 38... Rd6 {[%clk 0:00:14.9]}
39. Rh6 {[%clk 0:03:06.5]} 39... a4 {[%clk 0:00:14.4]} 40. Rxh5 {[%clk
0:03:06.8]} 40... a3 {[%clk 0:00:14.1]} 41. Rh8 {[%clk 0:03:07.4]} 41... Ba6
{[%clk 0:00:12.4]} 42. Rg8 {[%clk 0:03:06.2]} 42... a2 {[%clk 0:00:11.9]} 43.
Rg1 {[%clk 0:03:06.7]} 43... Bc4 {[%clk 0:00:12.2]} 44. h5 {[%clk 0:03:06.9]}
44... Rd7 {[%clk 0:00:10.3]} 45. h6 {[%clk 0:03:07.2]} 45... Ra7 {[%clk
0:00:10.5]} 46. Ra1 {[%clk 0:03:06.6]} 46... Rh7 {[%clk 0:00:08.5]} 47. Kg3
{[%clk 0:03:06.9]} 47... b5 {[%clk 0:00:08.9]} 48. Kg4 {[%clk 0:03:07.1]} 48...
Kd6 {[%clk 0:00:08.4]} 49. Kf5 {[%clk 0:03:07.5]} 49... Ke7 {[%clk 0:00:08.6]}
50. Kg6 {[%clk 0:03:07.8]} 50... Bg8 {[%clk 0:00:07.9]} 51. Bc5+ {[%clk
0:03:06.3]} 51... Ke6 {[%clk 0:00:06.7]} 52. Rd1 {[%clk 0:03:06.8]} 52... Rc7
{[%clk 0:00:05.3]} 53. Rd6+ {[%clk 0:03:06.1]} 53... Ke7 {[%clk 0:00:05.8]} 54.
Ra6+ {[%clk 0:02:43.5]} 54... Rxc5 {[%clk 0:00:05.8]} 55. Kg7 {[%clk 0:02:44.4]}
55... Bc4 {[%clk 0:00:04.8]} 56. h7 {[%clk 0:02:43.5]} 56... Rc8 {[%clk
0:00:05.4]} 57. h8=Q {[%clk 0:02:27.5]} 57... Rxh8 {[%clk 0:00:05.5]} 58. Kxh8
{[%clk 0:02:28.4]} 58... b4 {[%clk 0:00:05.6]} 59. Ra7+ {[%clk 0:02:28.2]} 59...
Kd6 {[%clk 0:00:05.8]} 60. cxb4 {[%clk 0:02:28.8]} 60... Kc6 {[%clk 0:00:06.3]}
61. Ra5 {[%clk 0:02:28.7]} 61... f5 {[%clk 0:00:04.6]} 62. exf5 {[%clk
0:02:26.7]} 62... e4 {[%clk 0:00:05.1]} 63. f6 {[%clk 0:02:27.6]} 63... e3
{[%clk 0:00:05.3]} 64. f7 {[%clk 0:02:22.8]} 64... Bxf7 {[%clk 0:00:05.4]} 65.
Rc5+ {[%clk 0:02:11.3]} 65... Kb6 {[%clk 0:00:05.4]} 66. Rc1 {[%clk 0:02:10.5]}
66... Bb3 {[%clk 0:00:04.6]} 67. Kg7 {[%clk 0:02:11.4]} 67... e2 {[%clk
0:00:04.6]} 68. Kf6 {[%clk 0:02:09.9]} 68... Bd1 {[%clk 0:00:04.8]} 69. Ra1
{[%clk 0:02:09]} 69... e1=Q {[%clk 0:00:05.1]} 70. Rxa2 {[%clk 0:02:08.8]} 70...
Qc3+ {[%clk 0:00:05.1]} 71. Kg5 {[%clk 0:02:07.9]} 71... Qxb4 {[%clk 0:00:04.6]}
72. Rf2 {[%clk 0:02:08.2]} 72... Qg4+ {[%clk 0:00:04.6]} 73. Kf6 {[%clk
0:02:01.2]} 73... Qh4+ {[%clk 0:00:04.9]} 0-1

[Event "*** Titled Tuesday Blitz"]
[Site "Chess.com"]
[Date "2021.02.09"]
[Round "7"]
[White "bocah_sakit"]
[Black "juancruzarias"]
[Result "1-0"]
[WhiteElo "2846"]
[BlackElo "2632"]
[TimeControl "180+1"]
[EndTime "11:18:18 PST"]
[Termination "bocah_sakit won by resignation"]

1. e4 {[%clk 0:03:00.9]} 1... e6 {[%clk 0:02:59.5]} 2. d4 {[%clk 0:03:01.1]}
2... d5 {[%clk 0:02:58.4]} 3. Nc3 {[%clk 0:03:01.4]} 3... Nf6 {[%clk 0:02:57.4]}
4. e5 {[%clk 0:03:01]} 4... Nfd7 {[%clk 0:02:57.6]} 5. f4 {[%clk 0:03:01.9]}
5... c5 {[%clk 0:02:58.1]} 6. Nf3 {[%clk 0:03:02.8]} 6... Nc6 {[%clk 0:02:58.5]}
7. Be3 {[%clk 0:03:03.5]} 7... Be7 {[%clk 0:02:58]} 8. Qd2 {[%clk 0:03:03.6]}
8... O-O {[%clk 0:02:58.3]} 9. dxc5 {[%clk 0:03:01.5]} 9... Nxc5 {[%clk
0:02:58.1]} 10. O-O-O {[%clk 0:03:00.6]} 10... Qa5 {[%clk 0:02:57.5]} 11. Kb1
{[%clk 0:02:51.9]} 11... Bd7 {[%clk 0:02:46.5]} 12. h4 {[%clk 0:02:48.1]} 12...
Rac8 {[%clk 0:02:39.3]} 13. h5 {[%clk 0:02:42.8]} 13... Na4 {[%clk 0:02:39]} 14.
Nxa4 {[%clk 0:02:35.3]} 14... Qxa4 {[%clk 0:02:39.9]} 15. Nd4 {[%clk 0:02:32.8]}
15... Nxd4 {[%clk 0:02:30.2]} 16. Bxd4 {[%clk 0:02:33.7]} 16... Bb5 {[%clk
0:02:25.7]} 17. h6 {[%clk 0:02:28]} 17... g6 {[%clk 0:02:25.2]} 18. Bd3 {[%clk
0:02:25.6]} 18... Bxd3 {[%clk 0:02:22.8]} 19. Qxd3 {[%clk 0:02:26.5]} 19... Bc5
{[%clk 0:02:12.7]} 20. c3 {[%clk 0:02:17.4]} 20... Bxd4 {[%clk 0:02:12]} 21.
cxd4 {[%clk 0:02:17.2]} 21... Rc4 {[%clk 0:02:06.1]} 22. g4 {[%clk 0:02:14.7]}
22... Rfc8 {[%clk 0:01:58.4]} 23. Rh2 {[%clk 0:01:48]} 23... Qc6 {[%clk
0:01:39.5]} 24. Qd2 {[%clk 0:01:45.2]} 24... Qd7 {[%clk 0:01:23.9]} 25. Rf2
{[%clk 0:01:40.5]} 25... a5 {[%clk 0:00:58.4]} 26. f5 {[%clk 0:01:37.9]} 26...
a4 {[%clk 0:00:57.6]} 27. fxg6 {[%clk 0:01:23.2]} 27... fxg6 {[%clk 0:00:57.3]}
28. Qg5 {[%clk 0:01:21.9]} 28... Qc7 {[%clk 0:00:45.5]} 29. a3 {[%clk 0:01:13]}
29... Rc2 {[%clk 0:00:39.8]} 30. Qf4 {[%clk 0:01:04.3]} 30... b5 {[%clk
0:00:23.9]} 31. Rdf1 {[%clk 0:01:00.3]} 31... Rxf2 {[%clk 0:00:23.5]} 32. Qxf2
{[%clk 0:01:01.2]} 32... b4 {[%clk 0:00:23.5]} 33. axb4 {[%clk 0:00:55.2]} 33...
a3 {[%clk 0:00:23.8]} 34. bxa3 {[%clk 0:00:53.7]} 34... Qb7 {[%clk 0:00:15.1]}
35. Rc1 {[%clk 0:00:48.5]} 35... Rxc1+ {[%clk 0:00:10.8]} 36. Kxc1 {[%clk
0:00:49.4]} 36... Qa6 {[%clk 0:00:10.6]} 37. Kb2 {[%clk 0:00:47.6]} 37... Qc4
{[%clk 0:00:09.7]} 38. Qd2 {[%clk 0:00:43.8]} 38... g5 {[%clk 0:00:09.9]} 39.
Qxg5+ {[%clk 0:00:43.2]} 39... Kf8 {[%clk 0:00:10.5]} 40. Qf6+ {[%clk
0:00:43.1]} 40... Ke8 {[%clk 0:00:09.9]} 41. Qxe6+ {[%clk 0:00:43.5]} 41... Kd8
{[%clk 0:00:10.8]} 42. Qd6+ {[%clk 0:00:42.3]} 42... Ke8 {[%clk 0:00:11.2]} 43.
Qc5 {[%clk 0:00:39.8]} 43... Qe2+ {[%clk 0:00:10.7]} 44. Qc2 {[%clk 0:00:40.1]}
44... Qe4 {[%clk 0:00:11.3]} 45. Qxe4 {[%clk 0:00:40]} 1-0

[Event "*** Titled Tuesday Blitz"]
[Site "Chess.com"]
[Date "2021.02.09"]
[Round "7"]
[White "Zmeeed63"]
[Black "FMKonstantin_Twitch"]
[Result "1-0"]
[WhiteElo "2451"]
[BlackElo "2615"]
[TimeControl "180+1"]
[EndTime "11:18:18 PST"]
[Termination "Zmeeed63 won by resignation"]

1. d4 {[%clk 0:03:00.9]} 1... Nf6 {[%clk 0:02:59.2]} 2. c4 {[%clk 0:03:01.3]}
2... g6 {[%clk 0:02:57.9]} 3. Nc3 {[%clk 0:03:01.1]} 3... d5 {[%clk 0:02:57.2]}
4. Nf3 {[%clk 0:03:00.4]} 4... Bg7 {[%clk 0:02:56.6]} 5. Bg5 {[%clk 0:03:01]}
5... dxc4 {[%clk 0:02:54.2]} 6. e4 {[%clk 0:02:38.1]} 6... O-O {[%clk
0:02:53.3]} 7. Bxc4 {[%clk 0:02:34.3]} 7... c5 {[%clk 0:02:50.3]} 8. d5 {[%clk
0:02:31.6]} 8... b5 {[%clk 0:02:33.2]} 9. Bxf6 {[%clk 0:02:19.4]} 9... Bxf6
{[%clk 0:02:10.8]} 10. Bxb5 {[%clk 0:02:18.4]} 10... Bxc3+ {[%clk 0:02:07.4]}
11. bxc3 {[%clk 0:02:17.1]} 11... Qa5 {[%clk 0:02:08.3]} 12. Qd3 {[%clk
0:02:07]} 12... Nd7 {[%clk 0:01:47.7]} 13. Bxd7 {[%clk 0:01:50.3]} 13... Bxd7
{[%clk 0:01:48.6]} 14. O-O {[%clk 0:01:47]} 14... Rab8 {[%clk 0:01:27.3]} 15. h3
{[%clk 0:01:33.5]} 15... Rb2 {[%clk 0:01:10.2]} 16. Qe3 {[%clk 0:01:21]} 16...
Rfb8 {[%clk 0:00:44.4]} 17. c4 {[%clk 0:01:06.1]} 17... Rc2 {[%clk 0:00:26.2]}
18. e5 {[%clk 0:01:00.9]} 18... Rxc4 {[%clk 0:00:20.5]} 19. e6 {[%clk
0:00:56.7]} 19... fxe6 {[%clk 0:00:21.4]} 20. dxe6 {[%clk 0:00:56.8]} 20... Be8
{[%clk 0:00:21.4]} 21. Qh6 {[%clk 0:00:54.1]} 21... Qc3 {[%clk 0:00:20.1]} 22.
Rac1 {[%clk 0:00:49.3]} 22... Qb4 {[%clk 0:00:14.2]} 23. Rb1 {[%clk 0:00:39.3]}
23... Qxb1 {[%clk 0:00:12.8]} 24. Rxb1 {[%clk 0:00:40.2]} 24... Rxb1+ {[%clk
0:00:12.6]} 25. Kh2 {[%clk 0:00:34.1]} 25... Rbb4 {[%clk 0:00:08.9]} 26. a3
{[%clk 0:00:30.9]} 26... Ra4 {[%clk 0:00:08.6]} 27. Qg5 {[%clk 0:00:29]} 27...
Kf8 {[%clk 0:00:06.7]} 28. Qe5 {[%clk 0:00:24.9]} 28... Kg8 {[%clk 0:00:05.5]}
29. Qb8 {[%clk 0:00:22.2]} 29... Kf8 {[%clk 0:00:05.2]} 30. Ne5 {[%clk
0:00:19.4]} 30... Rd4 {[%clk 0:00:01.6]} 31. Nd7+ {[%clk 0:00:19.2]} 31... Kg7
{[%clk 0:00:02.5]} 32. Qxe8 {[%clk 0:00:17.6]} 1-0

[Event "*** Titled Tuesday Blitz"]
[Site "Chess.com"]
[Date "2021.02.09"]
[Round "7"]
[White "elohunter1999"]
[Black "Angel_Hranitel_37"]
[Result "0-1"]
[WhiteElo "2649"]
[BlackElo "2499"]
[TimeControl "180+1"]
[EndTime "11:18:18 PST"]
[Termination "Angel_Hranitel_37 won on time"]

1. d4 {[%clk 0:03:00.9]} 1... Nf6 {[%clk 0:03:00.5]} 2. c4 {[%clk 0:03:00.9]}
2... g6 {[%clk 0:02:59.6]} 3. Nc3 {[%clk 0:02:58.6]} 3... Bg7 {[%clk 0:03:00.2]}
4. e4 {[%clk 0:02:59.2]} 4... O-O {[%clk 0:03:01]} 5. Nf3 {[%clk 0:02:59]} 5...
d6 {[%clk 0:03:01.4]} 6. Be2 {[%clk 0:02:59.6]} 6... e5 {[%clk 0:03:01.9]} 7.
O-O {[%clk 0:02:59.3]} 7... Bg4 {[%clk 0:03:02.4]} 8. d5 {[%clk 0:02:42.3]} 8...
a5 {[%clk 0:03:01.9]} 9. Ne1 {[%clk 0:02:41.9]} 9... Bd7 {[%clk 0:03:01.7]} 10.
Nd3 {[%clk 0:02:41.5]} 10... Na6 {[%clk 0:03:01.8]} 11. Be3 {[%clk 0:02:41.8]}
11... b6 {[%clk 0:03:01.1]} 12. f3 {[%clk 0:02:39.2]} 12... Nh5 {[%clk
0:03:01.2]} 13. a3 {[%clk 0:02:38.8]} 13... f5 {[%clk 0:03:00.5]} 14. b4 {[%clk
0:02:39]} 14... Nf4 {[%clk 0:02:59.1]} 15. Rb1 {[%clk 0:02:33.8]} 15... axb4
{[%clk 0:02:45.8]} 16. axb4 {[%clk 0:02:33.6]} 16... fxe4 {[%clk 0:02:34.5]} 17.
Nxe4 {[%clk 0:02:26.7]} 17... Bh6 {[%clk 0:02:34]} 18. Nxf4 {[%clk 0:02:21]}
18... Bxf4 {[%clk 0:02:34.9]} 19. Bxf4 {[%clk 0:02:17.5]} 19... Rxf4 {[%clk
0:02:34.4]} 20. c5 {[%clk 0:02:17.4]} 20... bxc5 {[%clk 0:02:31.5]} 21. Bxa6
{[%clk 0:02:09.5]} 21... Rxa6 {[%clk 0:02:32.4]} 22. bxc5 {[%clk 0:02:10.2]}
22... Bf5 {[%clk 0:01:54]} 23. g3 {[%clk 0:01:19.4]} 23... Bxe4 {[%clk
0:01:48.9]} 24. fxe4 {[%clk 0:01:19.7]} 24... Qg5 {[%clk 0:01:30.7]} 25. Rb8+
{[%clk 0:01:15.1]} 25... Kg7 {[%clk 0:01:29.7]} 26. Rxf4 {[%clk 0:01:07.5]}
26... exf4 {[%clk 0:01:30.6]} 27. Qd4+ {[%clk 0:01:07.4]} 27... Kh6 {[%clk
0:01:23.6]} 28. Rb3 {[%clk 0:00:33.1]} 28... fxg3 {[%clk 0:01:15.9]} 29. Rxg3
{[%clk 0:00:32.3]} 29... Qc1+ {[%clk 0:01:16.4]} 30. Kg2 {[%clk 0:00:22.9]}
30... Ra2+ {[%clk 0:01:17]} 31. Kh3 {[%clk 0:00:20.3]} 31... Qf1+ {[%clk
0:01:16.8]} 32. Kg4 {[%clk 0:00:18.2]} 32... Rxh2 {[%clk 0:00:47.9]} 33. Qe3+
{[%clk 0:00:16.8]} 33... Kg7 {[%clk 0:00:48.5]} 34. Qc3+ {[%clk 0:00:10]} 34...
Kg8 {[%clk 0:00:48.3]} 35. Rf3 {[%clk 0:00:07]} 35... Qg2+ {[%clk 0:00:30.8]}
36. Kf4 {[%clk 0:00:04.3]} 36... Rh4+ {[%clk 0:00:31.4]} 37. Ke3 {[%clk
0:00:03.5]} 37... Qxf3+ {[%clk 0:00:32.2]} 0-1

[Event "*** Titled Tuesday Blitz"]
[Site "Chess.com"]
[Date "2021.02.09"]
[Round "7"]
[White "leoduarte"]
[Black "KononenkoD"]
[Result "1-0"]
[WhiteElo "2399"]
[BlackElo "2516"]
[TimeControl "180+1"]
[EndTime "11:18:18 PST"]
[Termination "leoduarte won by checkmate"]

1. e4 {[%clk 0:02:56]} 1... c6 {[%clk 0:02:56.6]} 2. d4 {[%clk 0:02:45.6]} 2...
d5 {[%clk 0:02:57.5]} 3. Nc3 {[%clk 0:02:45.4]} 3... dxe4 {[%clk 0:02:57.5]} 4.
Nxe4 {[%clk 0:02:46.3]} 4... Bf5 {[%clk 0:02:57.9]} 5. Ng3 {[%clk 0:02:46.7]}
5... Bg6 {[%clk 0:02:58.5]} 6. h4 {[%clk 0:02:47.4]} 6... h6 {[%clk 0:02:57.8]}
7. Nf3 {[%clk 0:02:47.7]} 7... Nd7 {[%clk 0:02:57.8]} 8. h5 {[%clk 0:02:47.7]}
8... Bh7 {[%clk 0:02:58.4]} 9. Bd3 {[%clk 0:02:48.3]} 9... Bxd3 {[%clk
0:02:58.9]} 10. Qxd3 {[%clk 0:02:49.2]} 10... e6 {[%clk 0:02:59.5]} 11. Bd2
{[%clk 0:02:45.8]} 11... Ngf6 {[%clk 0:02:59.2]} 12. O-O-O {[%clk 0:02:45.1]}
12... Be7 {[%clk 0:02:59.8]} 13. Kb1 {[%clk 0:02:38.1]} 13... O-O {[%clk
0:02:57.4]} 14. Ne4 {[%clk 0:02:33.9]} 14... c5 {[%clk 0:02:57.7]} 15. g4 {[%clk
0:02:18.1]} 15... Nxg4 {[%clk 0:02:57.1]} 16. Qe2 {[%clk 0:01:41.2]} 16... cxd4
{[%clk 0:02:40.5]} 17. Rdg1 {[%clk 0:01:30.8]} 17... f5 {[%clk 0:02:36.2]} 18.
Nxd4 {[%clk 0:01:28.3]} 18... Qb6 {[%clk 0:02:34.2]} 19. Bc3 {[%clk 0:01:21]}
19... Nge5 {[%clk 0:02:15.3]} 20. f4 {[%clk 0:01:00]} 20... fxe4 {[%clk
0:02:02.8]} 21. fxe5 {[%clk 0:00:53.6]} 21... Rac8 {[%clk 0:01:55.4]} 22. Rxg7+
{[%clk 0:00:34.1]} 22... Kxg7 {[%clk 0:01:52.8]} 23. Qg4+ {[%clk 0:00:31.7]}
23... Bg5 {[%clk 0:01:44.6]} 24. Nxe6+ {[%clk 0:00:32.1]} 24... Kh8 {[%clk
0:01:29.3]} 25. Nxf8 {[%clk 0:00:29.7]} 25... Rxc3 {[%clk 0:00:22]} 26. Qxd7
{[%clk 0:00:17.9]} 26... Rc7 {[%clk 0:00:20.4]} 27. Ng6+ {[%clk 0:00:17.1]}
27... Kg8 {[%clk 0:00:19.5]} 28. Qe8+ {[%clk 0:00:11.6]} 28... Kg7 {[%clk
0:00:19.4]} 29. Rf1 {[%clk 0:00:08.4]} 29... Qe6 {[%clk 0:00:10.3]} 30. Qh8#
{[%clk 0:00:06.9]} 1-0

[Event "*** Titled Tuesday Blitz"]
[Site "Chess.com"]
[Date "2021.02.09"]
[Round "7"]
[White "Goryachkina"]
[Black "frazier69"]
[Result "0-1"]
[WhiteElo "2666"]
[BlackElo "2523"]
[TimeControl "180+1"]
[EndTime "11:18:19 PST"]
[Termination "frazier69 won by resignation"]

1. e4 {[%clk 0:03:00.2]} 1... c5 {[%clk 0:02:59]} 2. Nf3 {[%clk 0:03:00]} 2...
Nc6 {[%clk 0:02:58.7]} 3. Bb5 {[%clk 0:02:58]} 3... g6 {[%clk 0:02:58.1]} 4. O-O
{[%clk 0:02:51.9]} 4... Bg7 {[%clk 0:02:56.8]} 5. Re1 {[%clk 0:02:51.5]} 5... e5
{[%clk 0:02:51.4]} 6. b4 {[%clk 0:02:50.1]} 6... cxb4 {[%clk 0:02:45.2]} 7. a3
{[%clk 0:02:49.5]} 7... b3 {[%clk 0:02:43.5]} 8. cxb3 {[%clk 0:02:49.3]} 8...
Nge7 {[%clk 0:02:43]} 9. Nc3 {[%clk 0:02:42.2]} 9... O-O {[%clk 0:02:40]} 10.
Bb2 {[%clk 0:02:30.8]} 10... d6 {[%clk 0:02:33.8]} 11. h3 {[%clk 0:02:30.1]}
11... h6 {[%clk 0:02:26.4]} 12. d3 {[%clk 0:02:01.5]} 12... g5 {[%clk
0:02:07.2]} 13. Qd2 {[%clk 0:01:34]} 13... Ng6 {[%clk 0:02:03.3]} 14. Bxc6
{[%clk 0:01:17]} 14... bxc6 {[%clk 0:02:01.9]} 15. d4 {[%clk 0:01:17.1]} 15...
Qf6 {[%clk 0:01:50.9]} 16. dxe5 {[%clk 0:01:11.7]} 16... dxe5 {[%clk 0:01:49.5]}
17. Qe3 {[%clk 0:01:09.8]} 17... Nf4 {[%clk 0:01:44.7]} 18. Ne2 {[%clk
0:01:04.6]} 18... Re8 {[%clk 0:01:37.7]} 19. Nxf4 {[%clk 0:00:45.8]} 19... gxf4
{[%clk 0:01:28.1]} 20. Qc5 {[%clk 0:00:44.1]} 20... Qg6 {[%clk 0:01:18]} 21. Kh2
{[%clk 0:00:43.3]} 21... Qh5 {[%clk 0:01:06.8]} 22. Qc3 {[%clk 0:00:21]} 22...
Re6 {[%clk 0:00:31.9]} 23. Rad1 {[%clk 0:00:20.6]} 23... Rg6 {[%clk 0:00:24.1]}
24. Rd8+ {[%clk 0:00:16.1]} 24... Kh7 {[%clk 0:00:23.9]} 25. Red1 {[%clk
0:00:14.4]} 25... Rxg2+ {[%clk 0:00:13.1]} 26. Kxg2 {[%clk 0:00:13.8]} 26...
Bxh3+ {[%clk 0:00:13.2]} 27. Kh2 {[%clk 0:00:12.1]} 27... Bg4+ {[%clk
0:00:08.1]} 28. Kg1 {[%clk 0:00:06.1]} 28... Rxd8 {[%clk 0:00:06.6]} 0-1